[Event "FIDE WSTC Open 50 2025"]
[Site "Prague"]
[Date "2025.02.19"]
[Round "3.7"]
[White "Guo, Yun"]
[Black "Thorhallsson, Throstur"]
[Result "0-1"]
[Annotator "RC"]
[ECO "B28"]
[WhiteElo "2213"]
[BlackElo "2394"]
[PlyCount "76"]
[EventDate "2025.02.17"]
[EventType "team-tourn"]
[EventCountry "CZE"]
[SourceTitle "playchess.com"]
[Source "ChessBase"]
[SourceQuality "1"]
[TimeControl "40/5400+30:1800+30"]

1. e4 {[%emt 0:00:06]} c5 {[%emt 0:00:17]} 2. Nf3 {[%emt 0:00:06]} a6 {[%emt 0:00:21]} 3. Nc3 {[%emt 0:01:28]} b5 {[%emt 0:01:40]} 4. d4 {[%emt 0:04:48]} cxd4 {[%emt 0:00:10]} 5. Nxd4 {[%emt 0:00:06]} Bb7 {[%emt 0:00:22]} 6. a3 {[%emt 0:07:28]} d6 {[%emt 0:05:55]} 7. Bd3 {[%emt 0:04:06]} Nf6 {[%emt 0:02:09]} 8. O-O {[%emt 0:00:17]} g6 {[%emt 0:04:32]} 9. Re1 {[%emt 0:01:52]} Bg7 {[%emt 0:00:34]} 10. Bf1 {[%emt 0:00:44]} O-O {[%emt 0:00:55]} 11. Nb3 {[%emt 0:06:19]} Nbd7 {[%emt 0:01:21]} 12. f4 {[%emt 0:04:29]} Rc8 {[%emt 0:07:10]} 13. g3 {[%emt 0:03:25]} h5 {[%emt 0:08:02]} 14. Bg2 {[%emt 0:22:52]} Ng4 {[%emt 0:03:27]} 15. Qe2 {[%emt 0:00:48]} Qb6+ {[%emt 0:04:56]} 16. Be3 {[%emt 0:00:09]} Nxe3 {[%emt 0:00:19]} 17. Qxe3 {[%emt 0:00:01]} Bxc3 {[%emt 0:01:36]} 18. bxc3 {[%emt 0:00:42]} Rxc3 {[%emt 0:00:19]} 19. Qxb6 {[%emt 0:01:52]} Nxb6 {[%emt 0:00:04]} 20. Ra2 {[%emt 0:00:30]} Rfc8 {[%emt 0:00:44]} 21. Re2 {[%emt 0:00:07]} Nc4 {[%emt 0:03:19]} 22. Kf2 {[%emt 0:01:24]} e5 {[%emt 0:04:12]} 23. a4 {[%emt 0:04:58]} b4 {[%emt 0:01:03]} 24. a5 {[%emt 0:00:06]} Bc6 {[%emt 0:06:14]} 25. Bf1 {[%emt 0:13:26]} Bb5 {[%emt 0:04:12]} 26. Na1 {[%emt 0:01:15]} h4 {[%emt 0:04:12]} 27. Re1 {[%emt 0:00:48]} hxg3+ {[%emt 0:01:35]} 28. hxg3 {[%emt 0:00:04]} Kg7 {[%emt 0:02:29]} 29. Bxc4 {[%emt 0:00:21]} R8xc4 {[%emt 0:02:24]} 30. Rb2 {[%emt 0:04:27]} Bc6 {[%emt 0:00:43]} 31. fxe5 {[%emt 0:01:11]} dxe5 {[%emt 0:00:18]} 32. Reb1 {[%emt 0:00:09]} Rxe4 {[%emt 0:03:00]} 33. Rxb4 {[%emt 0:00:51]} Rf3+ {[%emt 0:01:22]} 34. Kg1 {[%emt 0:00:50]} Rxg3+ {[%emt 0:00:12]} 35. Kf1 {[%emt 0:00:59]} Rf3+ {[%emt 0:00:50]} 36. Kg1 {[%emt 0:00:01]} Re2 {[%emt 0:02:33]} 37. Rb6 {[%emt 0:01:52]} Be4 {[%emt 0:00:46]} 38. R6b4 {[%emt 0:05:19]} Rf4 {[%emt 0:00:19]} 0-1

[Event "FIDE WSTC Open 50 2025"]
[Site "Prague"]
[Date "2025.02.19"]
[Round "3.8"]
[White "Olafsson, Helgi"]
[Black "Liu, Shilan"]
[Result "1-0"]
[Annotator "TA"]
[ECO "A05"]
[WhiteElo "2466"]
[BlackElo "2093"]
[PlyCount "87"]
[EventDate "2025.02.17"]
[EventType "team-tourn"]
[EventCountry "CZE"]
[SourceTitle "playchess.com"]
[Source "ChessBase"]
[SourceQuality "1"]
[TimeControl "40/5400+30:1800+30"]

{[%evp 19,87,0,14,3,25,0,0,0,0,0,0,0,19,16,13,12,20,9,12,15,18,13,27,21,0,16,20,26,27,22,28,0,53,30,90,92,66,82,98,83,108,119,118,99,118,87,108,112,102,106,113,110,118,110,120,129,116,122,360,191,189,175,173,184,186,184,165,143,132,122]} 1. Nf3 {[%emt 0:00:04]} Nf6 {[%emt 0:00:11]} 2. g3 {[%emt 0:00:28]} d5 {[%emt 0:02:33]} 3. Bg2 {[%emt 0:00:26]} e6 {[%emt 0:01:18]} 4. O-O {[%emt 0:00:33]} Be7 {[%emt 0:00:33]} 5. b3 {[%emt 0:01:03]} O-O {[%emt 0:00:15]} 6. c4 {[%emt 0:00:55]} c5 {[%emt 0:03:03]} 7. e3 {[%emt 0:04:21]} Nc6 {[%emt 0:00:25]} 8. Bb2 {[%emt 0:02:03]} b6 {[%emt 0:03:25]} 9. Qe2 {[%emt 0:01:42]} Bb7 {[%emt 0:00:31]} 10. Rd1 {[%emt 0:00:41]} Rc8 {[%emt 0:07:22]} 11. Na3 {[%emt 0:09:55] A14: English Opening: 1...e6 with b3 by White.} Re8 $146 {[%emt 0:15:07]} (11... Qc7 12. d4 cxd4 13. Nxd4 Nxd4 14. Rxd4 Qb8 15. Rad1 Rfd8 16. h4 h6 17. R4d3 Ba6 {1-0 Erigaisi,A (2778)-Margvelashvili,G (2531) Titled Tuesday intern op 23rd Jul Late blitz 2024 (4)}) 12. Nc2 {[%emt 0:02:42]} Qc7 {[%emt 0:05:36]} 13. Rac1 {[%emt 0:02:43] The position is equal.} dxc4 14. bxc4 {[%emt 0:00:45]} Na5 {[%emt 0:02:24]} 15. Bc3 {[%emt 0:04:20]} Ne4 {[%emt 0:01:41]} 16. Bxa5 {[%emt 0:01:53]} bxa5 {[%emt 0:00:08]} 17. Na3 {[%emt 0:00:25][%cal Bc2a3,Ba3b1,Bb1c3][%mdl 32]} a6 {[%emt 0:00:59]} 18. d3 {[%emt 0:00:23]} Nd6 {[%emt 0:02:13]} 19. Nb1 {[%emt 0:01:30]} Rb8 {[%emt 0:00:42]} 20. Nc3 {[%emt 0:00:25]} Bc6 {[%emt 0:02:03]} 21. Ne5 {[%emt 0:05:37]} Bxg2 {[%emt 0:00:10]} 22. Kxg2 {[%emt 0:00:05]} f6 {[%emt 0:00:10]} (22... Rb4 {looks sharper.} 23. Qf3 Bf6 24. Qc6 Rc8) 23. Nf3 $36 {[%emt 0:00:07][%mdl 2048] White fights for an advantage.} Qc6 {[%emt 0:00:22]} 24. Kg1 {[%emt 0:11:03]} Rb4 {[%emt 0:03:01]} 25. Rc2 {[%emt 0:04:59]} Bd8 {[%emt 0:02:17]} (25... a4 $11) 26. Nd2 {[%emt 0:02:07]} Bc7 {[%emt 0:01:23]} (26... f5 $11) 27. Qf3 {[%emt 0:00:29]} Qxf3 {[%emt 0:01:26]} 28. Nxf3 {[%emt 0:00:05]} Rc8 {[%emt 0:00:49]} 29. Nd2 {[%emt 0:00:44]} Kf7 {[%emt 0:00:32][%cal Bg8f7,Bf7e7,Be7d7,Bd7c6][%mdl 32]} 30. Kf1 {[%emt 0:00:58]} Ke7 {[%emt 0:00:20]} 31. Ke2 {[%emt 0:00:12]} Kd7 {[%emt 0:04:01]} 32. Rb1 {[%emt 0:08:15]} Rcb8 {[%emt 0:03:37]} 33. Rb3 {[%emt 0:00:19]} Kc6 {[%emt 0:01:35]} 34. Rcb2 f5 {[%emt 0:02:17]} 35. a3 {[%emt 0:07:18]} Rxb3 {[%emt 0:04:09]} (35... Nxc4 $2 36. dxc4 R4b7 37. Rxb7 Rxb7 38. Rxb7 Kxb7 39. Kd3 $18) 36. Nxb3 {[%emt 0:00:33]} Rd8 {[%emt 0:01:33]} 37. Na4 {[%emt 0:00:39] A dynamic duo of knights.} Nb7 {[%emt 0:00:37]} 38. d4 {[%emt 0:00:49][%cal Rb3c5]} e5 $2 {[%emt 0:07:59] This move loses the game for Black.} (38... Bd6 $16 {was called for.} 39. h3 g6) 39. Nbxc5 {[%emt 0:07:44]} (39. d5+ $142 Kd6 40. Nd4 cxd4 41. Rxb7) 39... Nxc5 $18 {[%emt 0:00:30] White is clearly better.} 40. Nxc5 {[%emt 0:00:08] [#] Ne6 is the strong threat.} (40. dxc5 e4 $11) 40... exd4 {[%emt 0:00:11]} 41. Ne6 {[%emt 0:30:18]} (41. Nxa6 $6 Bb6 $11) 41... d3+ {[%emt 0:30:37]} 42. Kd2 {[%emt 0:00:05]} Rd7 {[%emt 0:01:45]} 43. Nd4+ {[%emt 0:00:56]} Kc5 {[%emt 0:00:31]} 44. Rb7 {[%emt 0:00:18] Weighted Error Value: White=0.13 (very precise) /Black=0.18 (very precise)   Loses game:     	---       	Black=1      Mistake:       	White=1     	Black=2      Inaccurate:     	White=1     	---        OK:         	White=17    	Black=9      Best:        	---       	Black=4} (44. Nxf5 $2 {too greedy.} Rf7 (44... Kxc4 45. Rb7 $16) 45. Nd4 (45. Rb7 $2 Kc6 $19) 45... Rxf2+ (45... Kxc4 46. f4 $11) 46. Kc1 Rf1+ (46... Rxb2 $2 47. Kxb2 Kxc4 48. Nf3 $19) 47. Kd2 Kxc4 $19 (47... Rf2+ $2 48. Kc3 $19)) ({Of course not} 44. Kxd3 $6 Be5 $11) 1-0

[Event "FIDE WSTC Open 50 2025"]
[Site "Prague"]
[Date "2025.02.19"]
[Round "3.9"]
[White "Lesiege, Alexandre"]
[Black "David, Alberto"]
[Result "1/2-1/2"]
[Annotator "TA"]
[ECO "B13"]
[WhiteElo "2504"]
[BlackElo "2467"]
[PlyCount "54"]
[EventDate "2025.02.17"]
[EventType "team-tourn"]
[EventCountry "CZE"]
[SourceTitle "playchess.com"]
[Source "ChessBase"]
[SourceQuality "1"]
[TimeControl "40/5400+30:1800+30"]

{[%evp 11,54,13,37,0,35,35,47,30,44,41,50,41,40,37,39,39,40,26,46,19,23,18,14,0,0,0,10,0,0,0,0,0,0,0,-11,-12,0,0,-5,-3,0,7,6,-39,6]} 1. e4 {[%emt 0:00:30]} c6 {[%emt 0:01:05]} 2. d4 {[%emt 0:00:14]} d5 {[%emt 0:00:06]} 3. exd5 {[%emt 0:00:18]} cxd5 {[%emt 0:00:06]} 4. Bd3 {[%emt 0:00:11]} Nc6 {[%emt 0:02:03]} 5. c3 {[%emt 0:00:09]} Qc7 {[%emt 0:01:05]} 6. h3 {[%emt 0:01:28]} Nf6 {[%emt 0:02:44] 6...e6 might become the main line.} 7. Ne2 {[%emt 0:00:35] B13: Caro-Kann: Exchange Variation and Panov-Botvinnik Attack.} g6 {[%emt 0:09:52]} 8. Bf4 {[%emt 0:03:59]} Qb6 {[%emt 0:01:16]} 9. Qb3 {[%emt 0:00:15] White is slightly better.} Qd8 {[%emt 0:14:09]} 10. O-O {[%emt 0:01:17]} Bg7 {[%emt 0:00:21]} 11. Nd2 {[%emt 0:01:19]} O-O {[%emt 0:03:45]} 12. Nf3 {[%emt 0:14:06]} b6 {[%emt 0:00:56]} 13. Qc2 $146 {[%emt 0:05:05]} (13. Ng3 Bb7 14. Rfe1 e6 15. Rad1 Ne7 16. Qc2 Rc8 17. Qd2 Nf5 18. Nxf5 exf5 19. Bh6 {1-0 Naboulet,P (1829)-Roman,R (2078) Vicente Lopez ProAm 100 Years op 2022 (5)}) 13... Bb7 {[%emt 0:08:05]} 14. Ng3 {[%emt 0:06:58]} Qc8 {[%emt 0:05:43]} 15. Qe2 {[%emt 0:04:11]} Nd7 {[%emt 0:01:51][%cal Bf6d7,Bd7c5,Bc5e6][%mdl 32]} 16. Rfe1 {[%emt 0:07:32]} Re8 {[%emt 0:00:20]} 17. Ne5 {[%emt 0:09:21]} Ncxe5 {[%emt 0:03:37]} 18. dxe5 {[%emt 0:00:32]} Nc5 {[%emt 0:00:28]} 19. Rad1 {[%emt 0:03:27]} Ne6 {[%emt 0:06:58]} 20. Bc1 {[%emt 0:01:05][%cal Og3h5]} d4 {[%emt 0:03:39]} 21. c4 {[%emt 0:03:11]} Nc5 {[%emt 0:00:40]} 22. Bb1 {[%emt 0:01:23][%cal Ob2b4]} Qc6 {[%emt 0:01:03][%csl Gb7][%cal Rc6g2] [#]} 23. f4 {[%emt 0:06:09][%cal Ob2b4]} Rad8 {[%emt 0:20:56][%cal Od4d3]} 24. b4 {[%emt 0:06:44]} Na4 {[%emt 0:01:37] And now ...Nc3 would win.} ({Much worse is} 24... d3 $6 25. Qf2 (25. Bxd3 $2 {perishes.} Nxd3 26. b5 Qxc4 $19) 25... Ne6 (25... Na6 $2 26. b5 $18) 26. Bxd3 $16) 25. Be4 {[%emt 0:00:26]} Qc7 {[%emt 0:00:48]} 26. Bxb7 {[%emt 0:09:27]} Qxb7 {[%emt 0:00:04]} 27. Bd2 {[%emt 0:00:08]} Qc6 {[%emt 0:06:43] Weighted Error Value: White=0.07 (flawless) /Black=0.05 (flawless)   Inaccurate:     	White=2     	Black=2      OK:         	White=8     	Black=11     Best:        	White=2     	---} 1/2-1/2

[Event "FIDE WSTC Open 50 2025"]
[Site "Prague"]
[Date "2025.02.19"]
[Round "3.10"]
[White "Godena, Michele"]
[Black "Duong, Thanh Nha"]
[Result "1/2-1/2"]
[Annotator "TA"]
[ECO "C42"]
[WhiteElo "2439"]
[BlackElo "2168"]
[PlyCount "42"]
[EventDate "2025.02.17"]
[EventType "team-tourn"]
[EventCountry "CZE"]
[SourceTitle "playchess.com"]
[Source "ChessBase"]
[SourceQuality "1"]
[TimeControl "40/5400+30:1800+30"]

{[%evp 15,42,22,59,15,13,20,28,19,29,30,34,18,22,19,36,25,27,25,25,20,23,6,20,0,35,0,18,0,22]} 1. e4 {[%emt 0:00:04]} e5 {[%emt 0:00:28]} 2. Nf3 {[%emt 0:00:17]} Nf6 {[%emt 0:00:28]} 3. Nxe5 {[%emt 0:01:19]} d6 {[%emt 0:01:23][%cal Bd7d6,Bd6d5][%mdl 32]} 4. Nf3 {[%emt 0:04:31]} Nxe4 {[%emt 0:00:30]} 5. c4 {[%emt 0:05:02]} Be7 {[%emt 0:03:29]} 6. d4 {[%emt 0:01:02]} O-O {[%emt 0:02:53]} 7. Bd3 {[%emt 0:01:05]} d5 {[%emt 0:03:27]} 8. O-O {[%emt 0:05:42]} c6 {[%emt 0:15:24]} 9. Qc2 {[%emt 0:32:50] C42: Petroff Defence: 3 Nxe5 and unusual White 3rd moves.} Nf6 {[%emt 0:17:56]} 10. h3 {[%emt 0:20:10]} Na6 {[%emt 0:02:15][%cal Bb8a6,Ba6c7,Bc7d5][%mdl 32]} 11. a3 {[%emt 0:02:29] White has an edge. Prevents Nb4} dxc4 {[%emt 0:00:24]} 12. Bxc4 {[%emt 0:00:06]} Nc7 {[%emt 0:00:14]} 13. Bf4 $146 {[%emt 0:05:35]} (13. Nc3 Be6 14. Bd3 h6 15. Bd2 Qd7 16. Rfe1 Rfd8 17. Rad1 c5 18. Ne4 cxd4 19. Ne5 {1-0 Luther,T (2545)-Olape,B (2256) Olympiad-39 Khanty-Mansiysk 2010 (1.1)}) 13... Ncd5 {[%emt 0:04:03]} 14. Be5 {[%emt 0:00:08]} h6 {[%emt 0:00:34]} 15. Nbd2 {[%emt 0:04:47]} Be6 {[%emt 0:05:10]} 16. Rfe1 {[%emt 0:00:11]} Re8 {[%emt 0:01:33]} 17. Rac1 {[%emt 0:02:18]} Nd7 {[%emt 0:07:36]} 18. Bg3 {[%emt 0:01:03]} N7f6 {[%emt 0:02:48]} 19. Be5 {[%emt 0:00:28]} Nd7 {[%emt 0:00:13]} 20. Bg3 {[%emt 0:00:07]} N7f6 {[%emt 0:00:06]} 21. Be5 {[%emt 0:08:31]} Nd7 {Weighted Error Value: White=0.13 (very precise) /Black=0.04 (flawless)   OK:         	White=4     	Black=9} 1/2-1/2

[Event "FIDE WSTC Open 50 2025"]
[Site "Prague"]
[Date "2025.02.19"]
[Round "3.11"]
[White "Berube, Richard"]
[Black "Bellini, Fabio"]
[Result "0-1"]
[Annotator "RC"]
[ECO "B12"]
[WhiteElo "2121"]
[BlackElo "2408"]
[PlyCount "76"]
[EventDate "2025.02.17"]
[EventType "team-tourn"]
[EventCountry "CZE"]
[SourceTitle "playchess.com"]
[Source "ChessBase"]
[SourceQuality "1"]
[TimeControl "40/5400+30:1800+30"]

1. e4 {[%emt 0:00:10]} c6 {[%emt 0:00:10]} 2. d4 {[%emt 0:00:17]} d5 {[%emt 0:00:06]} 3. e5 {[%emt 0:00:34]} Bf5 {[%emt 0:00:11]} 4. Nf3 {[%emt 0:00:08]} e6 {[%emt 0:00:20]} 5. Be2 {[%emt 0:00:31]} Ne7 {[%emt 0:04:00]} 6. O-O {[%emt 0:00:26]} Nc8 {[%emt 0:01:02]} 7. Nbd2 {[%emt 0:01:41]} Be7 {[%emt 0:01:50]} 8. Re1 {[%emt 0:03:23]} Bg6 {[%emt 0:07:16]} 9. Nb3 {[%emt 0:03:40]} Nd7 {[%emt 0:06:50]} 10. Be3 {[%emt 0:02:12]} Qc7 {[%emt 0:02:38]} 11. a4 {[%emt 0:08:36]} O-O {[%emt 0:08:33]} 12. c3 a5 {[%emt 0:07:35]} 13. Nc1 {[%emt 0:07:59]} c5 {[%emt 0:04:06]} 14. Nd3 {[%emt 0:04:49]} Ncb6 {[%emt 0:07:11]} 15. Nf4 {[%emt 0:05:29]} Be4 {[%emt 0:10:10]} 16. Rc1 {[%emt 0:04:59]} Bxf3 {[%emt 0:02:31]} 17. Bxf3 {[%emt 0:00:23]} Nc4 {[%emt 0:00:21]} 18. b3 {[%emt 0:08:19]} Nxe3 {[%emt 0:00:30]} 19. fxe3 {[%emt 0:00:18]} Bg5 20. c4 {[%emt 0:02:48]} cxd4 {[%emt 0:05:45]} 21. cxd5 {[%emt 0:18:54]} Qxe5 {[%emt 0:00:31]} 22. dxe6 {[%emt 0:01:43]} fxe6 {[%emt 0:00:52]} 23. Rc4 {[%emt 0:02:35]} Rad8 {[%emt 0:15:03]} 24. Qxd4 {[%emt 0:06:11]} Bxf4 {[%emt 0:00:25]} 25. Qxe5 {[%emt 0:02:45]} Bxe5 {[%emt 0:00:06]} 26. Bxb7 Rb8 {[%emt 0:02:57]} 27. Bc6 {[%emt 0:00:15]} Nf6 {[%emt 0:00:07]} 28. Bb5 {[%emt 0:00:09]} Rbd8 {[%emt 0:04:29]} 29. Rc5 {[%emt 0:00:36]} Rd5 {[%emt 0:01:28]} 30. Rc6 {[%emt 0:00:08]} Ng4 {[%emt 0:00:59]} 31. Bc4 {[%emt 0:01:55]} Bxh2+ {[%emt 0:01:46]} 32. Kh1 {[%emt 0:00:05]} Rg5 {[%emt 0:02:30]} 33. Bxe6+ {[%emt 0:00:13]} Kh8 {[%emt 0:00:01]} 34. Bxg4 {[%emt 0:00:15]} Bg3 {[%emt 0:00:24]} 35. Rec1 {[%emt 0:03:38]} Rxg4 {[%emt 0:00:21]} 36. R6c4 {[%emt 0:01:02]} Rg5 {[%emt 0:00:33]} 37. Rc8 {[%emt 0:00:57]} Rh5+ {[%emt 0:00:15]} 38. Kg1 {[%emt 0:00:01]} Bh2+ {[%emt 0:00:09]} 0-1

[Event "FIDE WSTC Open 50 2025"]
[Site "Prague"]
[Date "2025.02.19"]
[Round "3.12"]
[White "Bellia, Fabrizio"]
[Black "Chabot, Roland"]
[Result "1-0"]
[Annotator "RC"]
[ECO "B81"]
[WhiteElo "2393"]
[BlackElo "2038"]
[PlyCount "56"]
[EventDate "2025.02.17"]
[EventType "team-tourn"]
[EventCountry "CZE"]
[SourceTitle "playchess.com"]
[Source "ChessBase"]
[SourceQuality "1"]
[TimeControl "40/5400+30:1800+30"]

1. e4 {[%emt 0:00:05]} c5 {[%emt 0:00:13]} 2. Nf3 {[%emt 0:00:06]} e6 {[%emt 0:00:35]} 3. d4 {[%emt 0:00:10]} cxd4 {[%emt 0:00:11]} 4. Nxd4 {[%emt 0:00:04]} Nf6 {[%emt 0:00:38]} 5. Nc3 {[%emt 0:00:14]} d6 {[%emt 0:00:32]} 6. g4 {[%emt 0:01:06]} h6 {[%emt 0:00:21]} 7. Rg1 {[%emt 0:00:21]} Nc6 {[%emt 0:01:27]} 8. Be3 {[%emt 0:00:51]} d5 {[%emt 0:03:49]} 9. exd5 {[%emt 0:01:28]} Nxd5 {[%emt 0:04:00]} 10. Nxd5 {[%emt 0:02:22]} Qxd5 {[%emt 0:05:50]} 11. Bg2 {[%emt 0:04:20]} Qc4 {[%emt 0:08:10]} 12. Nxc6 {[%emt 0:07:17]} bxc6 {[%emt 0:00:13]} 13. Qd4 {[%emt 0:02:03]} Qxd4 {[%emt 0:05:31]} 14. Bxd4 {[%emt 0:00:08]} Bd7 {[%emt 0:03:31]} 15. O-O-O {[%emt 0:02:32]} f6 {[%emt 0:03:24]} 16. Rge1 {[%emt 0:09:20]} h5 {[%emt 0:25:07]} 17. g5 {[%emt 0:13:49]} Be7 {[%emt 0:07:55]} 18. g6 {[%emt 0:12:05]} a5 {[%emt 0:05:59]} 19. Bh3 {[%emt 0:01:40]} f5 {[%emt 0:03:23]} 20. Bxf5 {[%emt 0:01:32]} Bg5+ {[%emt 0:04:00]} 21. Kb1 {[%emt 0:01:27]} O-O-O {[%emt 0:00:27]} 22. Be4 {[%emt 0:01:53]} Bf4 {[%emt 0:02:15]} 23. Bxg7 {[%emt 0:00:52]} Rhg8 {[%emt 0:00:15]} 24. Bc3 {[%emt 0:00:41]} Bc7 {[%emt 0:00:14]} 25. g7 {[%emt 0:01:38]} e5 {[%emt 0:03:41]} 26. Rg1 {[%emt 0:00:11]} Bg4 {[%emt 0:01:38]} 27. Rxd8+ {[%emt 0:00:17]} Rxd8 {[%emt 0:00:13]} 28. Bh7 {[%emt 0:01:01]} Rh8 1-0

[Event "FIDE WSTC Open 50 2025"]
[Site "Prague"]
[Date "2025.02.19"]
[Round "3.13"]
[White "Titscher, Libor"]
[Black "Kazhgaleyev, Murtas"]
[Result "0-1"]
[Annotator "TA"]
[ECO "A10"]
[WhiteElo "2147"]
[BlackElo "2495"]
[PlyCount "120"]
[EventDate "2025.02.17"]
[EventType "team-tourn"]
[EventCountry "CZE"]
[SourceTitle "playchess.com"]
[Source "ChessBase"]
[SourceQuality "1"]
[TimeControl "40/5400+30:1800+30"]

{[%evp 9,120,39,31,40,44,55,75,83,84,75,81,71,83,81,81,79,71,75,68,21,69,14,13,10,13,18,12,-29,12,9,14,9,28,10,23,25,30,21,62,36,39,41,65,0,48,7,31,0,11,0,0,-10,0,0,21,0,0,0,0,-8,-4,-6,-6,-12,-13,-23,0,0,0,0,0,0,0,0,0,0,0,0,0,-24,-29,-29,-31,-258,-264,-366,-343,-361,-358,-217,-8,-7,-4,-8,-8,-8,-8,-8,-8,-8,-8,-4627,-4622,-4622,-4618,-4618,-580,-29979,-29980,-29981,-29982,-29982,-29983]} 1. c4 {[%emt 0:00:04] ChessBase II} b6 {[%emt 0:00:21]} 2. Nf3 {[%emt 0:00:41]} Bb7 {[%emt 0:00:04]} 3. Nc3 {[%emt 0:03:26]} Bxf3 {[%emt 0:00:18]} 4. gxf3 {[%emt 0:00:54]} c5 {[%emt 0:04:05]} 5. d4 {[%emt 0:06:50]} cxd4 {[%emt 0:00:29] Black is weak on the light squares} 6. Qxd4 {[%emt 0:00:08] A10: English Opening: Unusual Replies for Black.} Nc6 {[%emt 0:00:03]} 7. Qd2 {[%emt 0:01:59]} g6 {[%emt 0:02:11]} 8. b3 {[%emt 0:00:53] White is better.} Bg7 {[%emt 0:02:47]} 9. Bb2 {[%emt 0:02:31]} Nf6 {[%emt 0:00:16]} 10. f4 {[%emt 0:09:51]} O-O {[%emt 0:00:49]} 11. Bg2 {[%emt 0:03:32] Prevents d5} Rc8 {[%emt 0:10:49]} 12. Rd1 $146 {[%emt 0:07:58]} ({Predecessor:} 12. O-O-O Nb8 13. Kb1 Rc5 14. Bf3 d6 15. h4 Qd7 16. h5 Nxh5 17. Bxh5 Rxh5 18. Rxh5 gxh5 {1-0 Naivelt,M-Lutsker,E URS-chT10 corr9194 1991}) 12... Re8 {[%emt 0:11:00]} 13. e3 {[%emt 0:12:35]} a6 {[%emt 0:01:25]} 14. Ne2 {[%emt 0:05:32]} (14. Qe2 $14) 14... d6 {[%emt 0:04:48]} (14... b5 $11) 15. f5 {[%emt 0:06:43]} ({White should try} 15. Rc1 $14) 15... b5 $11 {[%emt 0:01:30]} 16. fxg6 {[%emt 0:01:13]} hxg6 {[%emt 0:00:04]} 17. cxb5 {[%emt 0:03:08]} axb5 {[%emt 0:00:04]} 18. Nf4 {[%emt 0:04:23][%cal Of4g6]} Qa5 {[%emt 0:04:10]} 19. Rc1 {[%emt 0:08:08]} (19. Qxa5 {simplifies} Nxa5 20. Ba3 d5 21. Nxd5 Nxd5 22. Rxd5 Rc2 23. O-O) 19... Qxd2+ {[%emt 0:08:27]} 20. Kxd2 {[%emt 0:00:16][%cal Ob2f6]} Ne5 {[%emt 0:00:05]} 21. h3 {[%emt 0:04:12]} e6 {[%emt 0:06:35]} 22. Rxc8 {[%emt 0:00:45]} Rxc8 {[%emt 0:00:07]} 23. Rc1 {[%emt 0:00:42]} Rd8 {[%emt 0:00:28]} 24. Rc7 {[%emt 0:01:54]} Ne8 {[%emt 0:07:02]} 25. Rb7 {[%emt 0:04:22]} Ra8 {[%emt 0:02:48]} 26. Kc2 {[%emt 0:03:40]} (26. Rxb5 Rxa2 27. Kc1 Nd7 $11) (26. a3 $14) 26... d5 {[%emt 0:05:41]} (26... Rxa2 $11 {was preferable.} 27. Kb1 Ra8) 27. Kb1 {[%emt 0:01:52]} (27. Rxb5 $5 g5 (27... Rxa2 28. Kb1 $11) 28. Nh5 $16) 27... Nd6 {[%emt 0:03:31]} 28. Rc7 {[%emt 0:00:12][%cal Of4e6]} Rd8 {[%emt 0:02:24]} 29. Bf1 {[%emt 0:00:49]} b4 {[%emt 0:01:40]} 30. Nd3 {[%emt 0:02:19]} Nxd3 {[%emt 0:07:56]} 31. Bxd3 {[%emt 0:00:08]} e5 {[%emt 0:01:41][%cal Be6e5,Be5e4][%mdl 32]} 32. a4 {[%emt 0:00:32]} bxa3 {[%emt 0:01:31]} 33. Bxa3 {[%emt 0:00:10]} e4 {[%emt 0:00:04]} 34. Be2 {[%emt 0:00:37]} d4 {[%emt 0:00:35]} 35. exd4 {[%emt 0:02:05]} Bxd4 {[%emt 0:00:17]} 36. Bc5 {[%emt 0:02:00]} Bxc5 {[%emt 0:08:46]} 37. Rxc5 {[%emt 0:00:01][%mdl 4096] Endgame KRB-KRN} Nf5 {[%emt 0:00:07]} 38. Re5 {[%emt 0:00:54]} Rb8 {[%emt 0:00:29]} 39. Bc4 {[%emt 0:00:40]} Kg7 {[%emt 0:01:07]} 40. Kc2 {[%emt 0:01:06]} Nd6 {[%emt 0:01:03]} 41. Rd5 {[%emt 0:05:49]} Nxc4 {[%emt 0:07:20]} 42. bxc4 {[%emt 0:00:18] KR-KR} Kf6 {[%emt 0:00:08]} 43. Kc3 {[%emt 0:04:07]} Ke6 {[%emt 0:00:14]} 44. Rg5 {[%emt 0:10:22]} Rd8 {[%emt 0:01:23]} 45. Rg3 {[%emt 0:01:30] Repels Rd3+} Rd1 {[%emt 0:01:38]} 46. Kb4 $2 {[%emt 0:02:10]} (46. c5 $15) 46... Rd2 $1 $19 {[%emt 0:02:26]} 47. Re3 {[%emt 0:01:44]} Ke5 {[%emt 0:01:31]} (47... Rxf2 48. Rxe4+ Kd6 49. Re8 $11) 48. f3 {[%emt 0:00:16]} f5 {[%emt 0:00:28]} 49. fxe4 {[%emt 0:00:10]} Kf4 {[%emt 0:03:26]} ({Not} 49... fxe4 50. Kc3 Rd6 51. c5 $17) ({Better is} 49... Kd4 $19 50. Rg3 fxe4 (50... Kxe4 51. Rxg6 f4 52. c5 $11) 51. Rxg6 Rb2+ 52. Ka3 Rc2) 50. Re1 $11 {[%emt 0:04:35] aiming for e5.} fxe4 {[%emt 0:00:09]} 51. Rg1 {[%emt 0:00:45]} g5 {[%emt 0:01:47]} 52. Rg4+ {[%emt 0:01:18]} Kf5 {[%emt 0:00:11]} 53. Rg3 {[%emt 0:01:03]} Rd8 {[%emt 0:03:11]} 54. c5 {[%emt 0:01:13]} Re8 {[%emt 0:00:15] ...e3 would now be deadly.} 55. c6 $2 {[%emt 0:01:16][%mdl 8192]} (55. Kc3 $11) 55... e3 $19 {[%emt 0:01:11]} 56. c7 {[%emt 0:00:16] [#]} Kf4 $1 {[%emt 0:00:48]} 57. Rg4+ {[%emt 0:00:50] [#]} Kf3 $1 {[%emt 0:00:21] ( -> ...e2)} 58. Kc5 {[%emt 0:01:31]} e2 {[%emt 0:00:16] Black mates.} 59. Rg1 {[%emt 0:00:05]} e1=Q {[%emt 0:00:31]} ({Weaker is} 59... e1=B 60. Rxg5 (60. Rxe1 $2 Rxe1 61. Kd6 Rc1 $19) 60... Ba5 61. Kd6 Bxc7+ 62. Kxc7 $11) 60. Rxe1 {[%emt 0:00:14]} Rxe1 {[%emt 0:00:04] Weighted Error Value: White=0.41/Black=0.13 (very precise)   Loses game:     	White=2     	---        Missed win:     	---       	Black=1      Mistake:       	White=3     	Black=2      Inaccurate:     	White=5     	Black=2      OK:         	White=18    	Black=18     Best:        	---       	Black=4      Strong:       	---       	Black=1} 0-1